fUST/lending_fUST_20250120
["ID","MTS","AMOUNT","RATE_DAILY","PERIOD"]
[349665335,1737363047034,-151.0,0.00021917,2]
[349665337,1737363047043,-151.0,0.00021917,2]
[349665339,1737363047052,-502.0831813,0.00021917,3]
[349665341,1737363047061,-500.0,0.00021917,3]
[349665343,1737363047070,-500.0,0.00021917,3]
[349665345,1737363047080,-500.0,0.00021917,3]
[349665347,1737363047089,-503.74231084,0.00021917,3]
[349665349,1737363047098,-500.0,0.00021917,3]
[349665351,1737363047107,-500.0,0.00021917,3]
[349665353,1737363047116,-500.0,0.00021917,3]
[349665355,1737363047126,-500.0,0.00021917,3]
[349665357,1737363047135,-368.45661824,0.00021917,3]
[349665359,1737363047144,-500.0,0.00021917,3]
[349665361,1737363047154,-500.0,0.00021917,3]
[349665363,1737363047165,-151.0,0.00021917,2]
[349665365,1737363047175,-151.0,0.00021917,2]
[349665367,1737363047184,-500.0,0.00021917,3]
[349665369,1737363047194,-500.0,0.00021917,3]
[349665371,1737363047203,-500.0,0.00021917,3]
[349665372,1737363047212,-500.0,0.00021917,3]
[349665374,1737363047222,-1920.08,0.00021917,3]
[349665376,1737363047231,-503.41188674,0.00021917,3]
[349665378,1737363047241,-500.0,0.00021917,3]
[349665380,1737363047250,-500.0,0.00021917,3]
[349665382,1737363047260,-500.0,0.00021917,3]
[349665384,1737363047270,-187.984808,0.00021917,2]
[349665386,1737363047279,-500.0,0.00021917,3]
[349665388,1737363047288,-500.0,0.00021917,3]
[349665390,1737363047297,-1764.79,0.00021917,2]
[349665392,1737363047306,-500.0,0.00021917,3]
[349665395,1737363047316,-500.0,0.00021917,3]
[349665397,1737363047325,-151.0,0.00021917,2]
[349665399,1737363047334,-160.391806,0.00021917,2]
[349665400,1737363047343,-741.08,0.00021917,3]
[349665402,1737363047353,-500.0,0.00021917,3]
[349665405,1737363047363,-500.0,0.00021917,3]
[349665407,1737363047372,-500.0,0.00021917,3]
[349665409,1737363047381,-500.0,0.00021917,3]
[349665411,1737363047390,-500.0,0.00021917,3]
[349665413,1737363047400,-502.73797271,0.00021917,3]
[349665415,1737363047413,-500.0,0.00021917,3]
[349665417,1737363047422,-500.0,0.00021917,3]
[349665419,1737363047431,-801.63,0.00021917,3]
[349665421,1737363047440,-3357.16,0.00021917,3]
[349665423,1737363047449,-500.0,0.00021917,3]
[349665425,1737363047458,-500.0,0.00021917,3]
[349665427,1737363047469,-500.0,0.00021917,3]
[349665429,1737363047480,-500.0,0.00021917,3]
[349665431,1737363047489,-504.24860235,0.00021917,3]
[349665432,1737363047499,-500.0,0.00021917,3]
[349665434,1737363047507,-500.0,0.00021917,3]
[349665436,1737363047518,-501.71009327,0.00021917,3]
[349665439,1737363047527,-544.455,0.00021917,3]
[349665440,1737363047536,-500.0,0.00021917,3]
[349665443,1737363047546,-500.0,0.00021917,3]
[349665445,1737363047557,-3137.36,0.00021917,3]
[349665447,1737363047566,-500.0,0.00021917,3]
[349665449,1737363047576,-500.0,0.00021917,3]
[349665450,1737363047586,-500.0,0.00021917,3]
[349665453,1737363047596,-500.0,0.00021917,3]
[349665455,1737363047605,-500.0,0.00021917,3]
[349665457,1737363047614,-501.65139913,0.00021917,3]
[349665459,1737363047623,-500.0,0.00021917,3]
[349665461,1737363047633,-500.0,0.00021917,3]
[349665463,1737363047642,-500.0,0.00021917,3]
[349665464,1737363047651,-500.0,0.00021917,3]
[349665466,1737363047665,-500.0,0.00021917,3]
[349665468,1737363047674,-1224.43,0.00021917,3]
[349665470,1737363047683,-500.0,0.00021917,3]
[349665472,1737363047692,-500.0,0.00021917,3]
[349665474,1737363047703,-500.0,0.00021917,2]
[349665476,1737363047712,-242.192975,0.00021917,2]
[349665478,1737363047721,-242.192975,0.00021917,2]
[349665480,1737363047730,-418.1062015,0.00021917,3]
[349665482,1737363047740,-242.192975,0.00021917,2]
[349665484,1737363047749,-242.192975,0.00021917,2]
[349665486,1737363047758,-151.0,0.00021917,2]
[349665497,1737363047839,-151.0,0.00021917,2]
[349665499,1737363047848,-973.75,0.00021917,3]
[349665501,1737363047858,-500.0,0.00021917,3]
[349665503,1737363047868,-640.59897569,0.00021917,3]
[349665505,1737363047877,-151.0,0.00021917,2]
[349665507,1737363047887,-514.98161789,0.00021917,3]
[349665509,1737363047897,-500.0,0.00021917,3]
[349665511,1737363047909,-500.0,0.00021917,3]
[349665513,1737363047918,-500.0,0.00021917,3]
[349665515,1737363047927,-1604.98,0.00021917,3]
[349665517,1737363047937,-500.0,0.00021917,3]
[349665519,1737363047947,-151.0,0.00021917,2]
[349665521,1737363047958,-500.0,0.00021917,3]
[349665523,1737363047968,-151.0,0.00021917,2]
[349665525,1737363047977,-500.0,0.00021917,3]
[349665527,1737363047986,-500.0,0.00021917,3]
[349665529,1737363047995,-500.0,0.00021917,3]
[349665531,1737363048004,-500.0,0.00021917,3]
[349665533,1737363048013,-500.0,0.00021917,3]
[349665535,1737363048027,-500.0,0.00021917,3]
[349665537,1737363048037,-501.64228358,0.00021917,3]
[349665539,1737363048046,-500.0,0.00021917,3]
[349665541,1737363048055,-500.0,0.00021917,3]
[349665543,1737363048065,-500.0,0.00021917,3]
[349665545,1737363048075,-500.0,0.00021917,3]
[349665547,1737363048085,-500.0,0.00021917,3]
[349665549,1737363048097,-500.0,0.00021917,3]
[349665552,1737363048108,-10290.31,0.00021917,3]
[349665554,1737363048118,-500.0,0.00021917,3]
[349665556,1737363048128,-500.0,0.00021917,3]
[349665558,1737363048138,-500.0,0.00021917,3]
[349665560,1737363048148,-500.0,0.00021917,3]
[349665562,1737363048159,-500.0,0.00021917,3]
[349665564,1737363048169,-499.0,0.00021917,2]
[349665566,1737363048179,-500.0,0.00021917,3]
[349665568,1737363048189,-502.04628563,0.00021917,3]
[349665569,1737363048199,-500.0,0.00021917,3]
[349665571,1737363048209,-500.0,0.00021917,3]
[349665573,1737363048219,-500.0,0.00021917,3]
[349665575,1737363048228,-151.0,0.00021917,2]
[349665577,1737363048238,-151.0,0.00021917,2]
[349665579,1737363048247,-500.0,0.00021917,3]
[349665581,1737363048256,-500.0,0.00021917,3]
[349665583,1737363048266,-500.0,0.00021917,3]
[349665585,1737363048275,-500.0,0.00021917,3]
[349665587,1737363048285,-500.0,0.00021917,3]
[349665589,1737363048294,-500.0,0.00021917,3]
[349665591,1737363048304,-1504.83,0.00021917,3]
[349665594,1737363048315,-500.0,0.00021917,3]
[349665596,1737363048324,-500.0,0.00021917,3]
[349665597,1737363048334,-500.0,0.00021917,3]
[349665599,1737363048343,-500.0,0.00021917,3]
[349665601,1737363048352,-500.0,0.00021917,3]
[349665603,1737363048362,-500.0,0.00021917,3]
[349665605,1737363048371,-500.0,0.00021917,3]
[349665608,1737363048381,-500.0,0.00021917,3]
[349665610,1737363048391,-503.04576977,0.00021917,3]
[349665612,1737363048401,-5310.12,0.00021917,3]
[349665613,1737363048413,-500.0,0.00021917,3]
[349665614,1737363048422,-500.0,0.00021917,3]
[349665615,1737363048433,-9119.31,0.00021917,3]
[349665616,1737363048445,-623.93,0.00021917,3]
[349665617,1737363048454,-500.0,0.00021917,3]
[349665618,1737363048464,-497.21662579,0.00021917,3]
[349665619,1737363048475,-500.0,0.00021917,3]
[349665620,1737363048484,-500.0,0.00021917,3]
[349665621,1737363048494,-503.07600085,0.00021917,3]
[349665622,1737363048503,-500.0,0.00021917,3]
[349665623,1737363048513,-500.0,0.00021917,3]
[349665625,1737363048522,-151.0,0.00021917,2]
[349665627,1737363048531,-151.0,0.00021917,2]
[349665629,1737363048542,-502.54118222,0.00021917,3]
[349665631,1737363048552,-500.0,0.00021917,3]
[349665633,1737363048562,-500.0,0.00021917,3]
[349665635,1737363048572,-500.0,0.00021917,3]
[349665637,1737363048582,-500.0,0.00021917,3]
[349665639,1737363048592,-500.0,0.00021917,3]
[349665641,1737363048601,-500.0,0.00021917,3]
[349665643,1737363048611,-500.0,0.00021917,3]
[349665645,1737363048621,-500.0,0.00021917,3]
[349665647,1737363048629,-500.0,0.00021917,3]
[349665649,1737363048639,-500.0,0.00021917,3]
[349665651,1737363048648,-500.0,0.00021917,3]
[349665653,1737363048659,-500.0,0.00021917,3]
[349665656,1737363048674,-500.0,0.00021917,3]
[349665658,1737363048684,-500.0,0.00021917,3]
[349665660,1737363048693,-500.0,0.00021917,3]
[349665662,1737363048702,-500.0,0.00021917,3]
[349665664,1737363048712,-502.3754234,0.00021917,3]
[349665666,1737363048721,-504.58387958,0.00021917,3]
[349665668,1737363048731,-500.0,0.00021917,3]
[349665670,1737363048740,-2278.86,0.00021917,3]
[349665672,1737363048750,-1991.91,0.00021917,3]
[349665674,1737363048759,-500.0,0.00021917,3]
[349665675,1737363048768,-500.0,0.00021917,3]
[349665677,1737363048777,-500.0,0.00021917,3]
[349665679,1737363048786,-500.0,0.00021917,3]
[349665681,1737363048795,-500.0,0.00021917,3]
[349665683,1737363048805,-500.0,0.00021917,3]
[349665686,1737363048814,-500.0,0.00021917,2]
[349665687,1737363048823,-500.0,0.00021917,3]
[349665689,1737363048833,-465.802518,0.00021917,2]
[349665691,1737363048842,-1608.79,0.00021917,3]
[349665693,1737363048852,-465.802518,0.00021917,2]
[349665695,1737363048860,-500.0,0.00021917,3]
[349665697,1737363048870,-513.88,0.00021917,3]
[349665699,1737363048879,-500.0,0.00021917,3]
[349665701,1737363048889,-500.0,0.00021917,3]
[349665703,1737363048898,-465.802518,0.00021917,2]
[349665705,1737363048909,-500.0,0.00021917,3]
[349665708,1737363048919,-465.802518,0.00021917,2]
[349665710,1737363048928,-502.07666205,0.00021917,3]
[349665712,1737363048937,-354.28716686,0.00021917,3]
[349665714,1737363048946,-500.0,0.00021917,3]
[349665716,1737363048955,-500.0,0.00021917,3]
[349665718,1737363048965,-500.0,0.00021917,3]
[349665720,1737363048976,-500.0,0.00021917,3]
[349665722,1737363048985,-500.0,0.00021917,3]
[349665724,1737363048994,-1571.57,0.00021917,3]
[349665726,1737363049003,-500.0,0.00021917,3]
[349665728,1737363049013,-500.0,0.00021917,3]
[349665730,1737363049022,-500.0,0.00021917,3]
[349665732,1737363049031,-500.0,0.00021917,3]
[349665734,1737363049041,-527.02,0.00021917,3]
[349665736,1737363049051,-5281.84,0.00021917,3]
[349665738,1737363049060,-500.0,0.00021917,3]
[349665747,1737363049138,-502.06324535,0.00021917,3]
[349665749,1737363049148,-25872.62,0.00021917,3]
[349665752,1737363049160,-500.0,0.00021917,3]
[349665754,1737363049169,-500.0,0.00021917,3]
[349665756,1737363049180,-500.0,0.00021917,3]
[349665758,1737363049189,-500.0,0.00021917,3]
[349665760,1737363049200,-502.19200276,0.00021917,3]
[349665762,1737363049209,-526.78,0.00021917,3]
[349665764,1737363049219,-500.0,0.00021917,3]
[349665766,1737363049230,-151.0,0.00021917,2]
[349665768,1737363049241,-151.0,0.00021917,2]
[349665770,1737363049251,-500.0,0.00021917,2]
[349665772,1737363049260,-500.0,0.00021917,3]
[349665774,1737363049271,-154.513393,0.00021917,2]
[349665776,1737363049280,-154.513393,0.00021917,2]
[349665778,1737363049290,-500.0,0.00021917,3]
[349665780,1737363049300,-500.0,0.00021917,3]
[349665782,1737363049309,-500.0,0.00021917,3]
[349665784,1737363049319,-500.0,0.00021917,3]
[349665786,1737363049329,-154.513393,0.00021917,2]
[349665788,1737363049338,-154.513393,0.00021917,2]
[349665790,1737363049347,-157.431518,0.00021917,2]
[349665792,1737363049357,-501.20534778,0.00021917,3]
[349665794,1737363049366,-500.0,0.00021917,3]
[349665796,1737363049376,-640.35142496,0.00021917,3]
[349665798,1737363049385,-500.0,0.00021917,3]
[349665800,1737363049394,-564.99,0.00021917,3]
[349665802,1737363049404,-500.0,0.00021917,3]
[349665804,1737363049415,-544.1584648,0.00021917,3]
[349665806,1737363049424,-501.65935243,0.00021917,3]
[349665808,1737363049434,-500.0,0.00021917,3]
[349665810,1737363049445,-500.0,0.00021917,3]
[349665812,1737363049454,-500.0,0.00021917,3]
[349665814,1737363049464,-1111.3,0.00021917,3]
[349665816,1737363049476,-500.0,0.00021917,3]
[349665818,1737363049486,-500.0,0.00021917,3]
[349665820,1737363049496,-500.0,0.00021917,3]
[349665822,1737363049506,-500.0,0.00021917,3]
[349665824,1737363049517,-500.0,0.00021917,3]
[349665826,1737363049526,-8374.84,0.00021917,3]
[349665828,1737363049535,-500.0,0.00021917,3]
[349665830,1737363049545,-500.0,0.00021917,3]
[349665832,1737363049556,-173.42862613,0.00021954,2]
[349665834,1737363049566,-1000.0,0.00021962,2]
[349665836,1737363049575,-1000.0,0.0002197,2]
[349665839,1737363049585,-500.0,0.00021973,2]
[349665840,1737363049595,-500.0,0.00021973,2]
[349665841,1737363049604,-500.0,0.00021973,2]
[349665842,1737363049613,-259.75032608,0.00021973,2]
[349665843,1737363049623,-500.0,0.00021973,2]
[349665844,1737363049632,-151.0,0.00021973,7]
[349665845,1737363049642,-151.0,0.00021973,7]
[349665846,1737363049652,-465.802518,0.00021973,7]
[349665847,1737363049663,-465.802518,0.00021973,7]
[349665848,1737363049672,-151.0,0.00021973,7]
[349665849,1737363049681,-154.513393,0.00021973,7]
[349665850,1737363049691,-154.513393,0.00021973,7]
[349665851,1737363049700,-262.9,0.00021991,6]
[349665852,1737363049717,-299.28812528,0.00021999,2]
[349665853,1737363049733,-151.0,0.00021999,7]
[349665854,1737363049749,-1560.47332589,0.00022,2]
[349665855,1737363049765,-151.0,0.00022,4]
[349665857,1737363049782,-5000.0,0.00022,30]
[349665858,1737363049798,-8596.38,0.00022,14]
[349665860,1737363049815,-800.0,0.00022,7]
[349665863,1737363049829,-205.71627,0.00022,7]
[349665865,1737363049846,-205.71627,0.00022,7]
[349665868,1737363049861,-151.0,0.00022,7]
[349665869,1737363049874,-242.192975,0.00022,7]
[349665870,1737363049889,-242.192975,0.00022,7]
[349665871,1737363049905,-151.0,0.00022,7]
[349665872,1737363049923,-184.687052,0.00022,7]
[349665873,1737363049939,-3000.0,0.0002201,2]
[349665874,1737363049953,-3000.0,0.0002202,2]
[349665875,1737363049964,-3000.0,0.0002203,2]
[349665876,1737363049981,-151.0,0.0002203,7]
[349665877,1737363049995,-500.0,0.00022039,2]
[349665878,1737363050008,-570.82443581,0.00022039,2]
[349665879,1737363050022,-3000.0,0.0002204,2]
[349665880,1737363050034,-151.0,0.0002204,7]
[349665881,1737363050047,-151.0,0.0002204,7]
[349665882,1737363050060,-151.0,0.0002204,7]
[349665883,1737363050072,-464.224272,0.0002204,7]
[349665884,1737363050085,-464.224272,0.0002204,7]
[349665885,1737363050098,-1071.839381,0.0002204,7]
[349665886,1737363050111,-3000.0,0.0002205,2]
[349665887,1737363050124,-158.74,0.00022054,2]
[349665888,1737363050137,-151.0,0.00022054,7]
[349665889,1737363050149,-501.35234803,0.00022054,3]
[349665890,1737363050164,-151.0,0.00022054,7]
[349665891,1737363050176,-500.0,0.00022054,3]
[349665892,1737363050190,-151.0,0.00022054,7]
[349665893,1737363050203,-500.0,0.00022054,3]
[349665894,1737363050216,-151.0,0.00022054,7]
[349665895,1737363050228,-155.5835,0.00022054,7]
[349665896,1737363050241,-500.0,0.00022054,3]
[349665897,1737363050254,-500.0,0.00022054,3]
[349665898,1737363050267,-500.0,0.00022054,3]
[349665899,1737363050281,-500.0,0.00022054,3]
[349665900,1737363050294,-500.0,0.00022054,3]
[349665901,1737363050307,-500.0,0.00022054,3]
[349665902,1737363050320,-500.0,0.00022054,3]
[349665903,1737363050333,-500.0,0.00022054,3]
[349665904,1737363050345,-500.0,0.00022054,3]
[349665905,1737363050358,-500.0,0.00022054,3]
[349665906,1737363050371,-505.85664522,0.00022054,3]
[349665907,1737363050383,-508.47564414,0.00022054,3]
[349665908,1737363050402,-500.0,0.00022054,3]
[349665909,1737363050415,-500.0,0.00022054,3]
[349665910,1737363050428,-500.0,0.00022054,3]
[349665911,1737363050440,-500.0,0.00022054,3]
[349665912,1737363050453,-533.80964002,0.00022054,3]
[349665913,1737363050464,-525.33458417,0.00022054,3]
[349665914,1737363050475,-500.0,0.00022054,3]
[349665915,1737363050485,-500.0,0.00022054,3]
[349665916,1737363050495,-500.0,0.00022054,3]
[349665917,1737363050628,-503.72189122,0.00022054,3]
[349665918,1737363050641,-500.0,0.00022054,3]
[349665919,1737363050651,-500.0,0.00022054,3]
[349665920,1737363050661,-151.0,0.00022054,7]
[349665921,1737363050670,-151.0,0.00022054,7]
[349665922,1737363050680,-151.0,0.00022054,7]
[349665923,1737363050689,-632.81365548,0.00022054,3]
[349665924,1737363050699,-500.0,0.00022054,3]
[349665925,1737363050708,-500.0,0.00022054,3]
[349665926,1737363050717,-500.0,0.00022054,3]
[349665927,1737363050728,-500.88688161,0.00022054,3]
[349665928,1737363050738,-502.14317866,0.00022054,3]
[349665929,1737363050750,-500.0,0.00022054,3]
[349665930,1737363050762,-501.29694341,0.00022054,3]
[349665931,1737363050771,-500.0,0.00022054,3]
[349665932,1737363050781,-503.89536042,0.00022054,3]
[349665933,1737363050790,-424.2164276,0.00022054,3]
[349665934,1737363050799,-502.23938851,0.00022054,3]
[349665935,1737363050808,-500.0,0.00022054,3]
[349665936,1737363050817,-500.0,0.00022054,3]
[349665937,1737363050826,-502.43386598,0.00022054,3]
[349665938,1737363050836,-500.0,0.00022054,3]
[349665939,1737363050845,-598.28643956,0.00022054,3]
[349665940,1737363050854,-500.0,0.00022054,3]
[349665941,1737363050863,-500.0,0.00022054,3]
[349665942,1737363050872,-500.0,0.00022054,3]
[349665943,1737363050882,-500.0,0.00022054,3]
[349665944,1737363050891,-500.0,0.00022054,3]
[349665945,1737363050901,-500.0,0.00022054,3]
[349665946,1737363050910,-502.81572155,0.00022054,3]
[349665947,1737363050919,-500.0,0.00022054,3]
[349665948,1737363050928,-500.0,0.00022054,3]
[349665949,1737363050937,-151.0,0.00022054,7]
[349665950,1737363050946,-408.99473416,0.00022054,3]
[349665951,1737363050955,-500.0,0.00022054,3]
[349665952,1737363050965,-500.0,0.00022054,3]
[349665953,1737363050975,-500.0,0.00022054,3]
[349665954,1737363050984,-500.0,0.00022054,3]
[349665955,1737363050994,-500.0,0.00022054,3]
[349665956,1737363051003,-419.91341342,0.00022054,3]
[349665957,1737363051012,-500.0,0.00022054,3]
[349665958,1737363051022,-500.0,0.00022054,3]
[349665959,1737363051032,-500.0,0.00022054,3]
[349665960,1737363051041,-500.0,0.00022054,3]
[349665961,1737363051050,-500.0,0.00022054,3]
[349665962,1737363051059,-500.0,0.00022054,3]
[349665963,1737363051069,-500.0,0.00022054,3]
[349665964,1737363051078,-1924.65,0.00022054,3]
[349665965,1737363051087,-438.43844398,0.00022054,3]
[349665966,1737363051096,-500.0,0.00022054,3]
[349665967,1737363051106,-501.22116682,0.00022054,3]
[349665968,1737363051115,-500.0,0.00022054,3]
[349665969,1737363051124,-500.0,0.00022054,3]
[349665970,1737363051133,-500.0,0.00022054,3]
[349665971,1737363051143,-500.0,0.00022054,3]
[349665972,1737363051152,-500.0,0.00022054,3]
[349665973,1737363051162,-500.0,0.00022054,3]
[349665974,1737363051172,-500.0,0.00022054,3]
[349665975,1737363051182,-506.00066216,0.00022054,3]
[349665976,1737363051191,-326.99850355,0.00022054,3]
[349665977,1737363051200,-500.0,0.00022054,3]
[349665978,1737363051210,-500.0,0.00022054,3]
[349665979,1737363051220,-500.0,0.00022054,3]
[349665980,1737363051229,-502.28121184,0.00022054,3]
[349665981,1737363051239,-501.28353926,0.00022054,3]
[349665982,1737363051249,-500.0,0.00022054,3]
[349665983,1737363051258,-506.07384595,0.00022054,2]
[349665984,1737363051267,-500.0,0.00022054,3]
[349665985,1737363051276,-500.0,0.00022054,3]
[349665986,1737363051285,-500.0,0.00022054,3]
[349665987,1737363051299,-500.0,0.00022054,3]
[349665988,1737363051308,-188.0,0.00022054,2]
[349665989,1737363051322,-508.27406062,0.00022054,3]
[349665990,1737363051334,-501.83849452,0.00022054,3]
[349665991,1737363051345,-500.0,0.00022054,3]
[349665992,1737363051354,-500.0,0.00022054,3]
[349665993,1737363051364,-500.0,0.00022054,3]
[349665994,1737363051374,-513.75749602,0.00022054,3]
[349665995,1737363051383,-500.0,0.00022054,3]
[349665996,1737363051393,-501.25438267,0.00022054,3]
[349665997,1737363051403,-500.0,0.00022054,3]
[349665998,1737363051413,-500.0,0.00022054,3]
[349665999,1737363051423,-500.0,0.00022054,3]
[349666000,1737363051432,-151.0,0.00022054,7]
[349666001,1737363051442,-151.0,0.00022054,7]
[349666002,1737363051451,-151.0,0.00022054,7]
[349666003,1737363051460,-152.767249,0.00022054,7]
[349666004,1737363051472,-501.64684731,0.00022054,3]
[349666005,1737363051482,-500.0,0.00022054,3]
[349666006,1737363051491,-505.09019356,0.00022054,3]
[349666007,1737363051500,-500.0,0.00022054,3]
[349666008,1737363051511,-500.0,0.00022054,3]
[349666009,1737363051520,-500.0,0.00022054,3]
[349666010,1737363051530,-500.0,0.00022054,3]
[349666011,1737363051539,-503.55100217,0.00022054,3]
[349666012,1737363051549,-500.0,0.00022054,3]
[349666013,1737363051558,-500.0,0.00022054,3]
[349666014,1737363051567,-500.0,0.00022054,3]
[349666015,1737363051577,-504.10302842,0.00022054,3]
[349666016,1737363051587,-500.0,0.00022054,2]
[349666017,1737363051596,-151.0,0.00022054,7]
[349666018,1737363051605,-151.0,0.00022054,7]
[349666019,1737363051615,-151.0,0.00022054,7]
[349666020,1737363051629,-228.492434,0.00022054,7]
[349666021,1737363051639,-500.0,0.00022054,3]
[349666022,1737363051650,-801.81,0.00022054,3]
[349666023,1737363051679,-151.0,0.00022054,7]
[349666024,1737363051691,-151.0,0.00022054,7]
[349666025,1737363051701,-151.0,0.00022054,7]
[349666026,1737363051710,-174.05181,0.00022054,7]
[349666027,1737363051720,-611.87,0.00022054,3]
[349666028,1737363051729,-502.71498313,0.00022054,3]
[349666029,1737363051739,-500.0,0.00022054,3]
[349666030,1737363051748,-500.0,0.00022054,3]
[349666031,1737363051757,-500.0,0.00022054,3]
[349666032,1737363051766,-500.0,0.00022054,3]
[349666033,1737363051776,-500.0,0.00022054,3]
[349666034,1737363051786,-500.0,0.00022054,3]
[349666035,1737363051795,-702.35,0.00022054,3]
[349666036,1737363051805,-500.0,0.00022054,3]
[349666037,1737363051814,-505.45480939,0.00022054,3]
[349666038,1737363051823,-568.89,0.00022054,3]
[349666039,1737363051832,-500.0,0.00022054,3]
[349666040,1737363051843,-705.02,0.00022054,3]
[349666041,1737363051853,-563.56,0.00022054,3]
[349666042,1737363051862,-500.0,0.00022054,3]
[349666043,1737363051872,-394.57015836,0.00022054,3]
[349666044,1737363051881,-500.0,0.00022054,3]
[349666045,1737363051890,-503.56559343,0.00022054,3]
[349666046,1737363051899,-151.0,0.00022054,7]
[349666047,1737363051908,-151.0,0.00022054,7]
[349666048,1737363051919,-500.0,0.00022054,3]
[349666049,1737363051928,-501.31336303,0.00022054,3]
[349666050,1737363051938,-500.0,0.00022054,3]
[349666051,1737363051947,-500.0,0.00022054,3]
[349666052,1737363051957,-500.0,0.00022054,3]
[349666053,1737363051966,-500.0,0.00022054,3]
[349666054,1737363051975,-500.0,0.00022054,3]
[349666055,1737363051986,-500.0,0.00022054,3]
[349666056,1737363051995,-500.0,0.00022054,3]
[349666057,1737363052004,-151.0,0.00022054,7]
[349666058,1737363052013,-151.0,0.00022054,7]
[349666059,1737363052023,-724.8,0.00022054,3]
[349666060,1737363052032,-500.0,0.00022054,3]
[349666061,1737363052041,-503.65661803,0.00022054,3]
[349666062,1737363052050,-500.0,0.00022054,3]
[349666063,1737363052059,-500.0,0.00022054,3]
[349666064,1737363052068,-500.0,0.00022054,3]
[349666065,1737363052077,-500.0,0.00022054,3]
[349666066,1737363052087,-259.228029,0.00022054,7]
[349666067,1737363052096,-259.228029,0.00022054,7]
[349666068,1737363052105,-259.228029,0.00022054,7]
[349666069,1737363052115,-500.0,0.00022054,3]
[349666070,1737363052124,-500.0,0.00022054,3]
[349666071,1737363052134,-500.0,0.00022054,3]
[349666072,1737363052143,-861.536483,0.00022054,7]
[349666073,1737363052153,-861.536483,0.00022054,7]
[349666074,1737363052163,-861.536483,0.00022054,7]
[349666075,1737363052172,-861.536483,0.00022054,7]
[349666076,1737363052181,-861.536483,0.00022054,7]
[349666077,1737363052191,-500.0,0.00022054,3]
[349666078,1737363052200,-502.10473656,0.00022054,3]
[349666079,1737363052209,-500.0,0.00022054,3]
[349666080,1737363052218,-500.0,0.00022054,3]
[349666081,1737363052227,-500.0,0.00022054,3]
[349666082,1737363052237,-500.0,0.00022054,3]
[349666083,1737363052246,-500.0,0.00022054,3]
[349666084,1737363052256,-151.0,0.00022054,7]
[349666085,1737363052265,-151.0,0.00022054,7]
[349666086,1737363052275,-151.0,0.00022054,7]
[349666087,1737363052284,-151.0,0.00022054,7]
[349666088,1737363052294,-189.521297,0.00022054,7]
[349666089,1737363052304,-695.6,0.00022054,3]
[349666090,1737363052314,-151.0,0.00022054,7]
[349666091,1737363052323,-151.0,0.00022054,7]
[349666092,1737363052333,-151.0,0.00022054,7]
[349666093,1737363052343,-151.0,0.00022054,7]
[349666094,1737363052353,-500.0,0.00022054,3]
[349666095,1737363052362,-500.0,0.00022054,3]
[349666096,1737363052371,-151.0,0.00022054,7]
[349666097,1737363052381,-500.0,0.00022054,3]